[Event "Titled Tuesday Blitz March 14 Late 2023"]
[White "Rangel, Daniel"]
[Black "Chor, Kevin"]
[WhiteFideId "2124475"]
[BlackFideId "2090740"]
[WhiteElo "2256"]
[BlackElo "2617"]
[Result "1-0"]
[Round "05"]
[TimeControl "180+1"]
[Date "2023.03.14"]
[WhiteClock "0:00:17"]
[BlackClock "0:00:05"]

1. c4 {[%clk 0:03:00]}  c5 {[%clk 0:02:59]} 2. g3 {[%clk 0:03:00]}  g6 {[%clk 0:02:59]} 3. Bg2 {[%clk 0:03:01]}  Bg7 {[%clk 0:03:00]} 4. Nc3 {[%clk 0:03:02]}  Nc6 {[%clk 0:03:01]} 5. e3 {[%clk 0:03:02]}  Nf6 {[%clk 0:03:02]} 6. Nge2 {[%clk 0:03:03]}  O-O {[%clk 0:03:02]} 7. O-O {[%clk 0:03:03]}  d6 {[%clk 0:02:59]} 8. b3 {[%clk 0:03:04]}  e5 {[%clk 0:02:51]} 9. Bb2 {[%clk 0:03:05]}  Rb8 {[%clk 0:02:49]} 10. d3 {[%clk 0:03:05]}  Ne8 {[%clk 0:02:46]} 11. Qd2 {[%clk 0:03:05]}  Nc7 {[%clk 0:02:46]} 12. Nd5 {[%clk 0:03:04]}  Bd7 {[%clk 0:02:45]} 13. Nec3 {[%clk 0:03:04]}  Ne6 {[%clk 0:02:37]} 14. Rae1 {[%clk 0:03:02]}  f5 {[%clk 0:02:36]} 15. f4 {[%clk 0:03:02]}  a6 {[%clk 0:02:34]} 16. h3 {[%clk 0:02:40]}  b5 {[%clk 0:02:29]} 17. Kh1 {[%clk 0:02:40]}  bxc4 {[%clk 0:02:14]} 18. dxc4 {[%clk 0:02:36]}  e4 {[%clk 0:02:15]} 19. Kh2 {[%clk 0:02:29]}  Nb4 {[%clk 0:02:09]} 20. Nxb4 {[%clk 0:02:26]}  cxb4 {[%clk 0:02:10]} 21. Nd5 {[%clk 0:02:23]}  Bxb2 {[%clk 0:02:11]} 22. Qxb2 {[%clk 0:02:23]}  Nc5 {[%clk 0:02:11]} 23. Rd1 {[%clk 0:02:12]}  Nd3 {[%clk 0:02:09]} 24. Qd4 {[%clk 0:02:09]}  Bc6 {[%clk 0:02:02]} 25. Rd2 {[%clk 0:02:05]}  a5 {[%clk 0:01:53]} 26. Rfd1 {[%clk 0:01:59]}  Rf7 {[%clk 0:01:48]} 27. Bf1 {[%clk 0:01:54]}  Nc5 {[%clk 0:01:40]} 28. Be2 {[%clk 0:01:35]}  Qf8 {[%clk 0:01:16]} 29. Rg1 {[%clk 0:01:30]}  Qg7 {[%clk 0:01:09]} 30. Qxg7+ {[%clk 0:01:20]}  Kxg7 {[%clk 0:01:10]} 31. g4 {[%clk 0:01:20]}  a4 {[%clk 0:00:58]} 32. bxa4 {[%clk 0:01:20]}  Kf8 {[%clk 0:00:50]} 33. gxf5 {[%clk 0:01:12]}  gxf5 {[%clk 0:00:50]} 34. Bh5 {[%clk 0:01:12]}  Bxd5 {[%clk 0:00:38]} 35. Rxd5 {[%clk 0:01:11]}  Rf6 {[%clk 0:00:38]} 36. Rg5 {[%clk 0:01:04]}  b3 {[%clk 0:00:28]} 37. axb3 {[%clk 0:00:59]}  Rxb3 {[%clk 0:00:29]} 38. Rgxf5 {[%clk 0:00:56]}  Rxf5 {[%clk 0:00:30]} 39. Rxf5+ {[%clk 0:00:57]}  Ke7 {[%clk 0:00:30]} 40. Rf7+ {[%clk 0:00:50]}  Ke6 {[%clk 0:00:30]} 41. Rxh7 {[%clk 0:00:46]}  Rxe3 {[%clk 0:00:30]} 42. Bg4+ {[%clk 0:00:47]}  Kf6 {[%clk 0:00:28]} 43. Rh6+ {[%clk 0:00:43]}  Ke7 {[%clk 0:00:28]} 44. a5 {[%clk 0:00:39]}  Rc3 {[%clk 0:00:26]} 45. f5 {[%clk 0:00:36]}  Rxc4 {[%clk 0:00:25]} 46. f6+ {[%clk 0:00:36]}  Kf7 {[%clk 0:00:25]} 47. Bh5+ {[%clk 0:00:35]}  Ke6 {[%clk 0:00:13]} 48. f7+ {[%clk 0:00:33]}  Ke7 {[%clk 0:00:14]} 49. Rh8 {[%clk 0:00:23]}  Nd7 {[%clk 0:00:13]} 50. Re8+ {[%clk 0:00:21]}  Kf6 {[%clk 0:00:13]} 51. Rd8 {[%clk 0:00:20]}  Rc2+ {[%clk 0:00:11]} 52. Kg1 {[%clk 0:00:17]}  Rc1+ {[%clk 0:00:04]} 53. Kf2 {[%clk 0:00:18]}  Rc2+ {[%clk 0:00:05]} 54. Ke1 {[%clk 0:00:17]} 1-0


[Site "https://www.chess.com"]

[Event "Titled Tuesday Blitz March 14 Late 2023"]
[White "Rodchenkov, Sergey D."]
[Black "Fus, Jakub"]
[WhiteFideId "4168712"]
[BlackFideId "1193023"]
[WhiteElo "2277"]
[BlackElo "2335"]
[Result "1-0"]
[Round "05"]
[TimeControl "180+1"]
[Date "2023.03.14"]
[WhiteClock "0:00:15"]
[BlackClock "0:00:04"]

1. e4 {[%clk 0:02:49]}  c5 {[%clk 0:02:59]} 2. Nf3 {[%clk 0:02:49]}  e6 {[%clk 0:03:00]} 3. d4 {[%clk 0:02:49]}  cxd4 {[%clk 0:03:01]} 4. Nxd4 {[%clk 0:02:50]}  a6 {[%clk 0:03:00]} 5. Nc3 {[%clk 0:02:51]}  b5 {[%clk 0:02:59]} 6. Bd3 {[%clk 0:02:50]}  Bb7 {[%clk 0:02:59]} 7. O-O {[%clk 0:02:50]}  Qc7 {[%clk 0:02:55]} 8. Re1 {[%clk 0:02:47]}  Be7 {[%clk 0:02:47]} 9. e5 {[%clk 0:02:06]}  Nc6 {[%clk 0:02:42]} 10. Nxc6 {[%clk 0:02:05]}  Bxc6 {[%clk 0:02:39]} 11. Qg4 {[%clk 0:02:04]}  g6 {[%clk 0:02:36]} 12. Qg3 {[%clk 0:01:45]}  f5 {[%clk 0:02:09]} 13. exf6 {[%clk 0:01:31]}  Qxg3 {[%clk 0:02:09]} 14. hxg3 {[%clk 0:01:28]}  Nxf6 {[%clk 0:02:09]} 15. Bh6 {[%clk 0:01:11]}  Kf7 {[%clk 0:02:09]} 16. Rad1 {[%clk 0:01:09]}  Rhc8 {[%clk 0:02:08]} 17. Ne2 {[%clk 0:01:08]}  Bc5 {[%clk 0:01:58]} 18. Be3 {[%clk 0:00:47]}  Bxe3 {[%clk 0:01:57]} 19. fxe3 {[%clk 0:00:47]}  Ng4 {[%clk 0:01:56]} 20. Nd4 {[%clk 0:00:47]}  Bb7 {[%clk 0:01:46]} 21. Nf3 {[%clk 0:00:44]}  Ke7 {[%clk 0:01:43]} 22. e4 {[%clk 0:00:43]}  Rf8 {[%clk 0:01:38]} 23. c3 {[%clk 0:00:41]}  h6 {[%clk 0:01:11]} 24. Bc2 {[%clk 0:00:41]}  g5 {[%clk 0:01:11]} 25. Rd4 {[%clk 0:00:40]}  d6 {[%clk 0:01:09]} 26. e5 {[%clk 0:00:28]}  Bxf3 {[%clk 0:01:10]} 27. exd6+ {[%clk 0:00:27]}  Kd7 {[%clk 0:01:10]} 28. gxf3 {[%clk 0:00:26]}  Nf6 {[%clk 0:01:07]} 29. Kg2 {[%clk 0:00:25]}  a5 {[%clk 0:00:59]} 30. Bb3 {[%clk 0:00:25]}  Rfe8 {[%clk 0:00:59]} 31. a4 {[%clk 0:00:25]}  e5 {[%clk 0:00:55]} 32. Rd3 {[%clk 0:00:22]}  b4 {[%clk 0:00:41]} 33. Bc4 {[%clk 0:00:20]}  e4 {[%clk 0:00:35]} 34. Bb5+ {[%clk 0:00:20]}  Kd8 {[%clk 0:00:36]} 35. fxe4 {[%clk 0:00:18]}  Rxe4 {[%clk 0:00:37]} 36. Rf1 {[%clk 0:00:18]}  Re2+ {[%clk 0:00:26]} 37. Rf2 {[%clk 0:00:16]}  Rxf2+ {[%clk 0:00:25]} 38. Kxf2 {[%clk 0:00:17]}  bxc3 {[%clk 0:00:21]} 39. bxc3 {[%clk 0:00:17]}  Ra7 {[%clk 0:00:22]} 40. Ke3 {[%clk 0:00:15]}  Rf7 {[%clk 0:00:17]} 41. Kd4 {[%clk 0:00:15]}  Ng4 {[%clk 0:00:15]} 42. Kc5 {[%clk 0:00:15]}  Rf5+ {[%clk 0:00:13]} 43. Rd5 {[%clk 0:00:15]}  Ne3 {[%clk 0:00:08]} 44. Rxf5 {[%clk 0:00:13]}  Nxf5 {[%clk 0:00:09]} 45. g4 {[%clk 0:00:13]}  Ng7 {[%clk 0:00:06]} 46. Kb6 {[%clk 0:00:13]}  h5 {[%clk 0:00:04]} 47. gxh5 {[%clk 0:00:13]}  Nxh5 {[%clk 0:00:04]} 48. c4 {[%clk 0:00:14]}  Nf6 {[%clk 0:00:03]} 49. c5 {[%clk 0:00:14]}  Nd5+ {[%clk 0:00:03]} 50. Kc6 {[%clk 0:00:14]}  Nb4+ {[%clk 0:00:03]} 51. Kb7 {[%clk 0:00:14]}  g4 {[%clk 0:00:02]} 52. c6 {[%clk 0:00:14]}  Nxc6 {[%clk 0:00:02]} 53. Bxc6 {[%clk 0:00:15]}  g3 {[%clk 0:00:03]} 54. Kb6 {[%clk 0:00:14]}  g2 {[%clk 0:00:03]} 55. Bxg2 {[%clk 0:00:14]}  Kd7 {[%clk 0:00:03]} 56. Kxa5 {[%clk 0:00:14]}  Kxd6 {[%clk 0:00:04]} 57. Kb6 {[%clk 0:00:15]} 1-0


[Site "https://www.chess.com"]

[Event "Titled Tuesday Blitz March 14 Late 2023"]
[White "Rostomyan, Mikayel"]
[Black "Dubov, Daniil"]
[WhiteFideId "13313754"]
[BlackFideId "24126055"]
[WhiteElo "2009"]
[BlackElo "2802"]
[Result "0-1"]
[Round "05"]
[TimeControl "180+1"]
[Date "2023.03.14"]
[WhiteClock "0:00:15"]
[BlackClock "0:00:47"]

1. d4 {[%clk 0:03:00]}  d5 {[%clk 0:02:59]} 2. Nf3 {[%clk 0:03:00]}  Nf6 {[%clk 0:02:58]} 3. c4 {[%clk 0:03:00]}  e6 {[%clk 0:02:57]} 4. g3 {[%clk 0:03:00]}  Be7 {[%clk 0:02:52]} 5. Bg2 {[%clk 0:03:00]}  O-O {[%clk 0:02:52]} 6. O-O {[%clk 0:03:00]}  dxc4 {[%clk 0:02:53]} 7. Qc2 {[%clk 0:03:00]}  b5 {[%clk 0:02:53]} 8. a4 {[%clk 0:02:58]}  b4 {[%clk 0:02:51]} 9. Nfd2 {[%clk 0:02:58]}  Nd5 {[%clk 0:02:51]} 10. Nxc4 {[%clk 0:02:55]}  c5 {[%clk 0:02:51]} 11. e4 {[%clk 0:02:42]}  Nb6 {[%clk 0:02:43]} 12. dxc5 {[%clk 0:02:27]}  Nxc4 {[%clk 0:02:42]} 13. Rd1 {[%clk 0:02:18]}  Qa5 {[%clk 0:02:39]} 14. Qxc4 {[%clk 0:02:17]}  Ba6 {[%clk 0:02:39]} 15. Qc2 {[%clk 0:02:13]}  Nc6 {[%clk 0:02:32]} 16. Be3 {[%clk 0:02:10]}  Rfd8 {[%clk 0:02:27]} 17. Nd2 {[%clk 0:02:01]}  Be2 {[%clk 0:02:24]} 18. Re1 {[%clk 0:01:53]}  Bd3 {[%clk 0:02:22]} 19. Qc1 {[%clk 0:01:52]}  Rac8 {[%clk 0:02:18]} 20. Nc4 {[%clk 0:01:44]}  Qa6 {[%clk 0:02:16]} 21. Bf1 {[%clk 0:01:15]}  Bxf1 {[%clk 0:02:10]} 22. Rxf1 {[%clk 0:01:13]}  Nd4 {[%clk 0:02:07]} 23. Bxd4 {[%clk 0:01:09]}  Rxd4 {[%clk 0:02:07]} 24. b3 {[%clk 0:00:57]}  Rxe4 {[%clk 0:02:05]} 25. Qd2 {[%clk 0:00:50]}  Bxc5 {[%clk 0:02:02]} 26. Rad1 {[%clk 0:00:45]}  Rd4 {[%clk 0:01:59]} 27. Qg5 {[%clk 0:00:38]}  h6 {[%clk 0:01:54]} 28. Qe5 {[%clk 0:00:34]}  Rcd8 {[%clk 0:01:50]} 29. Rxd4 {[%clk 0:00:31]}  Bxd4 {[%clk 0:01:51]} 30. Qc7 {[%clk 0:00:29]}  Qc8 {[%clk 0:01:49]} 31. Qa5 {[%clk 0:00:21]}  Qb8 {[%clk 0:00:49]} 32. Kg2 {[%clk 0:00:15]}  Qb7+ {[%clk 0:00:46]} 33. f3 {[%clk 0:00:15]}  Rd5 {[%clk 0:00:47]} 0-1


[Site "https://www.chess.com"]

[Event "Titled Tuesday Blitz March 14 Late 2023"]
[White "Sabar, Ethmane Daouda"]
[Black "Guzman Moneo, Alberto"]
[WhiteFideId "19600097"]
[BlackFideId "2209616"]
[WhiteElo "1950"]
[BlackElo "2157"]
[Result "1-0"]
[Round "05"]
[TimeControl "180+1"]
[Date "2023.03.14"]
[WhiteClock "0:00:46"]
[BlackClock "0:00:34"]

1. e4 {[%clk 0:02:57]}  c5 {[%clk 0:02:59]} 2. a3 {[%clk 0:02:56]}  e6 {[%clk 0:02:57]} 3. b4 {[%clk 0:02:56]}  cxb4 {[%clk 0:02:58]} 4. axb4 {[%clk 0:02:54]}  Bxb4 {[%clk 0:02:58]} 5. Bb2 {[%clk 0:02:54]}  Nf6 {[%clk 0:02:56]} 6. e5 {[%clk 0:02:55]}  Nd5 {[%clk 0:02:55]} 7. c4 {[%clk 0:02:51]}  Nb6 {[%clk 0:02:54]} 8. Ra3 {[%clk 0:02:43]}  Nc6 {[%clk 0:02:49]} 9. Rg3 {[%clk 0:02:36]}  g6 {[%clk 0:02:47]} 10. Nf3 {[%clk 0:02:16]}  Qe7 {[%clk 0:02:34]} 11. Nc3 {[%clk 0:02:11]}  Qc5 {[%clk 0:02:24]} 12. Ne4 {[%clk 0:01:59]}  Qa5 {[%clk 0:02:17]} 13. Nf6+ {[%clk 0:01:55]}  Kf8 {[%clk 0:02:17]} 14. Be2 {[%clk 0:01:45]}  Na4 {[%clk 0:02:08]} 15. Ba1 {[%clk 0:01:43]}  Nc5 {[%clk 0:02:08]} 16. O-O {[%clk 0:01:40]}  Qa4 {[%clk 0:02:07]} 17. Qb1 {[%clk 0:01:26]}  Qb3 {[%clk 0:02:03]} 18. d4 {[%clk 0:01:21]}  Qxb1 {[%clk 0:01:54]} 19. Rxb1 {[%clk 0:01:22]}  Na6 {[%clk 0:01:33]} 20. d5 {[%clk 0:01:19]}  exd5 {[%clk 0:01:32]} 21. cxd5 {[%clk 0:01:19]}  Ne7 {[%clk 0:01:28]} 22. Bxa6 {[%clk 0:01:19]}  bxa6 {[%clk 0:01:27]} 23. Rxb4 {[%clk 0:01:18]}  h5 {[%clk 0:01:24]} 24. h4 {[%clk 0:01:13]}  Nf5 {[%clk 0:01:23]} 25. Rg5 {[%clk 0:01:12]}  a5 {[%clk 0:01:20]} 26. Rb1 {[%clk 0:01:08]}  a4 {[%clk 0:01:18]} 27. Bb2 {[%clk 0:01:06]}  Kg7 {[%clk 0:01:05]} 28. e6 {[%clk 0:01:02]}  dxe6 {[%clk 0:01:05]} 29. Nxh5+ {[%clk 0:00:59]}  Kg8 {[%clk 0:00:59]} 30. Bxh8 {[%clk 0:00:58]}  Kxh8 {[%clk 0:01:00]} 31. Nf6 {[%clk 0:00:55]}  exd5 {[%clk 0:00:57]} 32. Nxd5 {[%clk 0:00:52]}  Be6 {[%clk 0:00:56]} 33. Nc7 {[%clk 0:00:51]}  Rc8 {[%clk 0:00:45]} 34. Nxe6 {[%clk 0:00:50]}  fxe6 {[%clk 0:00:45]} 35. g4 {[%clk 0:00:51]}  Ne7 {[%clk 0:00:41]} 36. Ra5 {[%clk 0:00:50]}  Rc4 {[%clk 0:00:41]} 37. Ne5 {[%clk 0:00:49]}  Re4 {[%clk 0:00:40]} 38. f3 {[%clk 0:00:48]}  Rf4 {[%clk 0:00:38]} 39. Rxa7 {[%clk 0:00:46]}  Nd5 {[%clk 0:00:34]} 40. Rb8+ {[%clk 0:00:46]} 1-0


[Site "https://www.chess.com"]

[Event "Titled Tuesday Blitz March 14 Late 2023"]
[White "Santos Flores, Alberto"]
[Black "Escalona Landi, Samid Eduardo"]
[WhiteFideId "3601234"]
[BlackFideId "3937437"]
[WhiteElo "2235"]
[BlackElo "2207"]
[Result "0-1"]
[Round "05"]
[TimeControl "180+1"]
[Date "2023.03.14"]
[WhiteClock "0:00:08"]
[BlackClock "0:00:07"]

1. e4 {[%clk 0:02:59]}  c5 {[%clk 0:02:59]} 2. Nf3 {[%clk 0:02:59]}  d6 {[%clk 0:03:00]} 3. Bb5+ {[%clk 0:02:59]}  Nc6 {[%clk 0:02:59]} 4. Bxc6+ {[%clk 0:02:56]}  bxc6 {[%clk 0:02:59]} 5. O-O {[%clk 0:02:56]}  e5 {[%clk 0:02:58]} 6. d3 {[%clk 0:02:54]}  Nf6 {[%clk 0:02:55]} 7. Nc3 {[%clk 0:02:51]}  Be7 {[%clk 0:02:55]} 8. Nd2 {[%clk 0:02:50]}  Bg4 {[%clk 0:02:48]} 9. f3 {[%clk 0:02:48]}  Be6 {[%clk 0:02:45]} 10. f4 {[%clk 0:02:48]}  exf4 {[%clk 0:02:41]} 11. Nf3 {[%clk 0:02:37]}  Nh5 {[%clk 0:02:33]} 12. Ne1 {[%clk 0:02:35]}  g6 {[%clk 0:02:29]} 13. Ne2 {[%clk 0:02:11]}  Bg4 {[%clk 0:02:26]} 14. Nf3 {[%clk 0:02:11]}  g5 {[%clk 0:02:16]} 15. h3 {[%clk 0:02:08]}  Be6 {[%clk 0:02:15]} 16. Nh2 {[%clk 0:02:03]}  Nf6 {[%clk 0:02:03]} 17. Nc3 {[%clk 0:01:53]}  d5 {[%clk 0:02:02]} 18. Qe2 {[%clk 0:01:46]}  h6 {[%clk 0:01:45]} 19. b3 {[%clk 0:01:41]}  Qa5 {[%clk 0:01:36]} 20. Bb2 {[%clk 0:01:34]}  O-O-O {[%clk 0:01:33]} 21. a3 {[%clk 0:01:21]}  Rhg8 {[%clk 0:01:24]} 22. b4 {[%clk 0:01:15]}  cxb4 {[%clk 0:01:24]} 23. axb4 {[%clk 0:01:16]}  Qb6+ {[%clk 0:01:20]} 24. Kh1 {[%clk 0:01:14]}  g4 {[%clk 0:01:11]} 25. hxg4 {[%clk 0:01:03]}  Nxg4 {[%clk 0:01:10]} 26. Nxg4 {[%clk 0:00:58]}  Rxg4 {[%clk 0:01:10]} 27. Qf2 {[%clk 0:00:53]}  Bxb4 {[%clk 0:00:40]} 28. Rxa7 {[%clk 0:00:36]}  Qxf2 {[%clk 0:00:37]} 29. Rxf2 {[%clk 0:00:37]}  Rh4+ {[%clk 0:00:34]} 30. Kg1 {[%clk 0:00:35]}  Bc5 {[%clk 0:00:35]} 31. Ra8+ {[%clk 0:00:31]}  Kd7 {[%clk 0:00:35]} 32. Rxd8+ {[%clk 0:00:32]}  Kxd8 {[%clk 0:00:36]} 33. exd5 {[%clk 0:00:28]}  cxd5 {[%clk 0:00:34]} 34. Ne2 {[%clk 0:00:28]}  Bxf2+ {[%clk 0:00:31]} 35. Kxf2 {[%clk 0:00:29]}  Rh1 {[%clk 0:00:28]} 36. Be5 {[%clk 0:00:24]}  Kd7 {[%clk 0:00:24]} 37. Bxf4 {[%clk 0:00:24]}  h5 {[%clk 0:00:14]} 38. Nd4 {[%clk 0:00:21]}  Bg4 {[%clk 0:00:11]} 39. Ke3 {[%clk 0:00:18]}  Rc1 {[%clk 0:00:09]} 40. Kd2 {[%clk 0:00:16]}  Rg1 {[%clk 0:00:09]} 41. g3 {[%clk 0:00:16]}  Rf1 {[%clk 0:00:08]} 42. Kc3 {[%clk 0:00:13]}  h4 {[%clk 0:00:08]} 43. Be5 {[%clk 0:00:08]}  h3 {[%clk 0:00:07]} 0-1


[Site "https://www.chess.com"]

[Event "Titled Tuesday Blitz March 14 Late 2023"]
[White "Saveliev, Alexei"]
[Black "Mirimanian, Hayk"]
[WhiteFideId "24128546"]
[BlackFideId "4700180"]
[WhiteElo "2271"]
[BlackElo "2280"]
[Result "0-1"]
[Round "05"]
[TimeControl "180+1"]
[Date "2023.03.14"]
[WhiteClock "0:00:02"]
[BlackClock "0:00:23"]

1. c4 {[%clk 0:03:00]}  e6 {[%clk 0:02:54]} 2. Nc3 {[%clk 0:03:00]}  Nf6 {[%clk 0:02:53]} 3. e4 {[%clk 0:03:00]}  Bb4 {[%clk 0:02:49]} 4. e5 {[%clk 0:02:59]}  Ng8 {[%clk 0:02:40]} 5. Qg4 {[%clk 0:02:59]}  Kf8 {[%clk 0:02:37]} 6. Nf3 {[%clk 0:02:56]}  Nh6 {[%clk 0:02:34]} 7. Qf4 {[%clk 0:02:53]}  d6 {[%clk 0:02:29]} 8. d4 {[%clk 0:02:51]}  c5 {[%clk 0:02:25]} 9. d5 {[%clk 0:02:28]}  exd5 {[%clk 0:02:22]} 10. cxd5 {[%clk 0:02:28]}  dxe5 {[%clk 0:02:16]} 11. Nxe5 {[%clk 0:02:29]}  f6 {[%clk 0:02:13]} 12. Bc4 {[%clk 0:02:16]}  Qe8 {[%clk 0:01:58]} 13. O-O {[%clk 0:01:58]}  Bxc3 {[%clk 0:01:53]} 14. bxc3 {[%clk 0:01:46]}  Qxe5 {[%clk 0:01:53]} 15. Qd2 {[%clk 0:01:44]}  Nf7 {[%clk 0:01:47]} 16. Re1 {[%clk 0:01:40]}  Qd6 {[%clk 0:01:40]} 17. Qe2 {[%clk 0:01:30]}  Qe5 {[%clk 0:01:32]} 18. Qd2 {[%clk 0:01:18]}  Qd6 {[%clk 0:01:32]} 19. Qe2 {[%clk 0:01:17]}  g5 {[%clk 0:01:20]} 20. f4 {[%clk 0:01:09]}  h6 {[%clk 0:01:14]} 21. Qf2 {[%clk 0:00:56]}  Kg7 {[%clk 0:01:09]} 22. Be3 {[%clk 0:00:50]}  b6 {[%clk 0:01:05]} 23. Rad1 {[%clk 0:00:50]}  Ba6 {[%clk 0:01:03]} 24. Bb3 {[%clk 0:00:46]}  Nd7 {[%clk 0:01:02]} 25. c4 {[%clk 0:00:39]}  Rae8 {[%clk 0:01:00]} 26. h4 {[%clk 0:00:34]}  g4 {[%clk 0:00:53]} 27. h5 {[%clk 0:00:27]}  Re4 {[%clk 0:00:39]} 28. Qg3 {[%clk 0:00:24]}  f5 {[%clk 0:00:39]} 29. Bc2 {[%clk 0:00:24]}  Nf6 {[%clk 0:00:37]} 30. Bc1 {[%clk 0:00:20]}  Rhe8 {[%clk 0:00:36]} 31. Bxe4 {[%clk 0:00:16]}  Nxe4 {[%clk 0:00:35]} 32. Bb2+ {[%clk 0:00:11]}  Kh7 {[%clk 0:00:34]} 33. Qd3 {[%clk 0:00:11]}  Qxf4 {[%clk 0:00:31]} 34. Rf1 {[%clk 0:00:11]}  Qg5 {[%clk 0:00:30]} 35. d6 {[%clk 0:00:08]}  Nfxd6 {[%clk 0:00:30]} 36. Qd5 {[%clk 0:00:06]}  Bb7 {[%clk 0:00:30]} 37. Qxf5+ {[%clk 0:00:03]}  Nxf5 {[%clk 0:00:29]} 38. Rd7+ {[%clk 0:00:04]}  Re7 {[%clk 0:00:29]} 39. Rd8 {[%clk 0:00:01]}  Qe3+ {[%clk 0:00:24]} 40. Kh1 {[%clk 0:00:01]}  Nfg3+ {[%clk 0:00:22]} 41. Kh2 {[%clk 0:00:02]}  Nxf1+ {[%clk 0:00:23]} 42. Kh1 {[%clk 0:00:02]}  Nf2+ {[%clk 0:00:23]} 43. Kg1 {[%clk 0:00:03]}  Nh3+ {[%clk 0:00:23]} 44. Kxf1 {[%clk 0:00:02]}  Qf2# {[%clk 0:00:23]} 0-1


[Site "https://www.chess.com"]

[Event "Titled Tuesday Blitz March 14 Late 2023"]
[White "Skvortsov, Andrei"]
[Black "Koutlas, Nikolaos"]
[WhiteFideId "24108600"]
[BlackFideId "25827138"]
[WhiteElo "2259"]
[BlackElo "2215"]
[Result "0-1"]
[Round "05"]
[TimeControl "180+1"]
[Date "2023.03.14"]
[WhiteClock "0:01:15"]
[BlackClock "0:00:08"]

1. e4 {[%clk 0:03:00]}  c5 {[%clk 0:02:57]} 2. d4 {[%clk 0:03:01]}  cxd4 {[%clk 0:02:55]} 3. Qxd4 {[%clk 0:03:02]}  Nc6 {[%clk 0:02:54]} 4. Qd3 {[%clk 0:03:02]}  g6 {[%clk 0:02:53]} 5. Nc3 {[%clk 0:03:02]}  Bg7 {[%clk 0:02:53]} 6. Nf3 {[%clk 0:03:03]}  Nf6 {[%clk 0:02:52]} 7. Be2 {[%clk 0:03:03]}  O-O {[%clk 0:02:51]} 8. O-O {[%clk 0:03:04]}  d5 {[%clk 0:02:51]} 9. Nxd5 {[%clk 0:03:01]}  Nxd5 {[%clk 0:02:50]} 10. exd5 {[%clk 0:03:01]}  Nb4 {[%clk 0:02:49]} 11. Qb3 {[%clk 0:03:01]}  a5 {[%clk 0:02:29]} 12. a3 {[%clk 0:02:56]}  Nxd5 {[%clk 0:02:19]} 13. Rd1 {[%clk 0:02:56]}  Be6 {[%clk 0:02:15]} 14. Bc4 {[%clk 0:02:46]}  a4 {[%clk 0:02:04]} 15. Qa2 {[%clk 0:02:45]}  Nc3 {[%clk 0:01:46]} 16. Rxd8 {[%clk 0:02:45]}  Rfxd8 {[%clk 0:01:38]} 17. Bd2 {[%clk 0:01:53]}  Nxa2 {[%clk 0:01:31]} 18. Bxe6 {[%clk 0:01:49]}  fxe6 {[%clk 0:01:06]} 19. Kf1 {[%clk 0:01:49]}  Rac8 {[%clk 0:00:36]} 20. Ke1 {[%clk 0:01:48]}  Rxc2 {[%clk 0:00:32]} 21. Rxa2 {[%clk 0:01:47]}  Rxb2 {[%clk 0:00:26]} 22. Rxb2 {[%clk 0:01:47]}  Bxb2 {[%clk 0:00:27]} 23. Bb4 {[%clk 0:01:45]}  Rd3 {[%clk 0:00:26]} 24. Ke2 {[%clk 0:01:44]}  Rb3 {[%clk 0:00:24]} 25. Nd2 {[%clk 0:01:33]}  Rxb4 {[%clk 0:00:21]} 26. axb4 {[%clk 0:01:30]}  a3 {[%clk 0:00:21]} 27. Nb3 {[%clk 0:01:30]}  a2 {[%clk 0:00:21]} 28. Kd3 {[%clk 0:01:30]}  a1=Q {[%clk 0:00:21]} 29. Nxa1 {[%clk 0:01:30]}  Bxa1 {[%clk 0:00:22]} 30. Kc4 {[%clk 0:01:31]}  Kf7 {[%clk 0:00:21]} 31. Kc5 {[%clk 0:01:30]}  Bc3 {[%clk 0:00:19]} 32. f3 {[%clk 0:01:28]}  Ke8 {[%clk 0:00:18]} 33. b5 {[%clk 0:01:28]}  Kd7 {[%clk 0:00:18]} 34. Kb6 {[%clk 0:01:29]}  Kc8 {[%clk 0:00:16]} 35. h3 {[%clk 0:01:28]}  Bd4+ {[%clk 0:00:16]} 36. Ka5 {[%clk 0:01:29]}  b6+ {[%clk 0:00:17]} 37. Kb4 {[%clk 0:01:30]}  Kc7 {[%clk 0:00:17]} 38. Kc4 {[%clk 0:01:30]}  Bg1 {[%clk 0:00:17]} 39. Kd3 {[%clk 0:01:31]}  Kd6 {[%clk 0:00:17]} 40. Ke4 {[%clk 0:01:32]}  Bh2 {[%clk 0:00:17]} 41. Kd4 {[%clk 0:01:32]}  Bg1+ {[%clk 0:00:17]} 42. Kc4 {[%clk 0:01:07]}  Ke5 {[%clk 0:00:16]} 43. Kd3 {[%clk 0:01:07]}  Kf4 {[%clk 0:00:16]} 44. Ke2 {[%clk 0:01:08]}  Bc5 {[%clk 0:00:14]} 45. g4 {[%clk 0:01:07]}  Kg3 {[%clk 0:00:14]} 46. h4 {[%clk 0:01:08]}  Kxh4 {[%clk 0:00:14]} 47. Kd3 {[%clk 0:01:08]}  Kg3 {[%clk 0:00:14]} 48. Ke4 {[%clk 0:01:09]}  h5 {[%clk 0:00:14]} 49. gxh5 {[%clk 0:01:09]}  gxh5 {[%clk 0:00:15]} 50. f4 {[%clk 0:01:10]}  h4 {[%clk 0:00:15]} 51. Ke5 {[%clk 0:01:08]}  h3 {[%clk 0:00:15]} 52. f5 {[%clk 0:01:09]}  h2 {[%clk 0:00:14]} 53. fxe6 {[%clk 0:01:07]}  h1=Q {[%clk 0:00:13]} 54. Kf5 {[%clk 0:01:08]}  Qd5+ {[%clk 0:00:12]} 55. Kg6 {[%clk 0:01:09]}  Qxe6+ {[%clk 0:00:12]} 56. Kg7 {[%clk 0:01:10]}  Bd4+ {[%clk 0:00:12]} 57. Kf8 {[%clk 0:01:11]}  Qf6+ {[%clk 0:00:11]} 58. Ke8 {[%clk 0:01:11]}  Bc5 {[%clk 0:00:09]} 59. Kd7 {[%clk 0:01:12]}  e5 {[%clk 0:00:08]} 60. Ke8 {[%clk 0:01:13]}  e4 {[%clk 0:00:08]} 61. Kd7 {[%clk 0:01:13]}  e3 {[%clk 0:00:09]} 62. Kc8 {[%clk 0:01:13]}  e2 {[%clk 0:00:09]} 63. Kb7 {[%clk 0:01:14]}  e1=Q {[%clk 0:00:09]} 64. Ka6 {[%clk 0:01:15]}  Qea1+ {[%clk 0:00:08]} 65. Kb7 {[%clk 0:01:15]}  Qe7+ {[%clk 0:00:09]} 66. Kc6 {[%clk 0:01:15]}  Qh1# {[%clk 0:00:08]} 0-1


[Site "https://www.chess.com"]

[Event "Titled Tuesday Blitz March 14 Late 2023"]
[White "Steinberg, Nitzan"]
[Black "Sarana, Alexey"]
[WhiteFideId "2801795"]
[BlackFideId "24133795"]
[WhiteElo "2486"]
[BlackElo "2714"]
[Result "1-0"]
[Round "05"]
[TimeControl "180+1"]
[Date "2023.03.14"]
[WhiteClock "0:00:52"]
[BlackClock "0:02:25"]

1. e4 {[%clk 0:03:00]}  e5 {[%clk 0:02:57]} 2. Nf3 {[%clk 0:03:01]}  Nc6 {[%clk 0:02:57]} 3. Bb5 {[%clk 0:03:01]}  a6 {[%clk 0:02:57]} 4. Ba4 {[%clk 0:03:02]}  b5 {[%clk 0:02:58]} 5. Bb3 {[%clk 0:03:02]}  Na5 {[%clk 0:02:59]} 6. O-O {[%clk 0:02:54]}  d6 {[%clk 0:02:58]} 7. d4 {[%clk 0:02:47]}  exd4 {[%clk 0:02:57]} 8. Nxd4 {[%clk 0:02:47]}  Bb7 {[%clk 0:02:54]} 9. Bd2 {[%clk 0:02:09]}  Nxb3 {[%clk 0:02:51]} 10. Nxb3 {[%clk 0:02:09]}  Nf6 {[%clk 0:02:51]} 11. Re1 {[%clk 0:02:08]}  Be7 {[%clk 0:02:51]} 12. Na5 {[%clk 0:01:57]}  Rb8 {[%clk 0:02:51]} 13. Nxb7 {[%clk 0:01:57]}  Rxb7 {[%clk 0:02:51]} 14. Bf4 {[%clk 0:01:55]}  O-O {[%clk 0:02:50]} 15. Nc3 {[%clk 0:01:55]}  b4 {[%clk 0:02:46]} 16. Nd5 {[%clk 0:01:56]}  Nxd5 {[%clk 0:02:46]} 17. Qxd5 {[%clk 0:01:51]}  Rb5 {[%clk 0:02:45]} 18. Qc6 {[%clk 0:01:39]}  Rb6 {[%clk 0:02:45]} 19. Qc4 {[%clk 0:01:34]}  Bf6 {[%clk 0:02:39]} 20. e5 {[%clk 0:01:33]}  d5 {[%clk 0:02:39]} 21. Qd3 {[%clk 0:01:28]}  Be7 {[%clk 0:02:35]} 22. Rad1 {[%clk 0:01:29]}  Rb5 {[%clk 0:02:34]} 23. g3 {[%clk 0:01:13]}  Qd7 {[%clk 0:02:33]} 24. h4 {[%clk 0:01:10]}  Qe6 {[%clk 0:02:32]} 25. Kg2 {[%clk 0:00:59]}  c6 {[%clk 0:02:31]} 26. Bc1 {[%clk 0:00:58]}  a5 {[%clk 0:02:29]} 27. f4 {[%clk 0:00:57]}  f5 {[%clk 0:02:24]} 28. exf6 {[%clk 0:00:52]}  Qf5 {[%clk 0:02:25]} 29. Qxf5 {[%clk 0:00:52]} 1-0


[Site "https://www.chess.com"]